Cogmind - Beta 13 @@@ ROGUE MODE // 2024.06.08 @ 16:43:51 Player: Sage Result: Destroyed by G-47 Trooper with Particle Gun Performance ------------- Evolutions (3) 1500 Regions Visited (6) 1200 Robots Destroyed (84) 420 Value Destroyed (2505) 2505 Prototype IDs (15) 300 Alien Tech Used (0) 0 Bonus (500) 500 TOTAL SCORE: 6425 Bonus ------- Entered DSFs 500 Cogmind --------- Core Integrity 0/700 Matter 288/300 Energy 37/100 System Corruption 15% Temperature Cool (18) Movement Rolling (95) Ox1 Location -7/DSF Parts ------- > --- POWER (1) -------- (None) > --- PROPULSION (2) --- Wheel > --- UTILITY (7) ------ Large Storage Unit > --- WEAPON (3) ------- (None) > --- INVENTORY (15) --- Light Deuterium Engine Light Nuclear Core Coolant Injector Sensor Array Microactuators Hacking Suite System Shield Recalibrator Advanced Beam Cannon Peak State ------------ > --- POWER ------------ Light Nuclear Core > --- PROPULSION ------- Wheel Compact Wheel > --- UTILITY ---------- Large Storage Unit Melee Analysis Suite Microactuators Microactuators Microactuators Hardened Light Armor Plating Hacking Suite > --- WEAPON ----------- Minigun High-powered Shotgun Katana > --- INVENTORY -------- Light Deuterium Engine Light Nuclear Core Wheel Wheel Coolant Injector Sensor Array Target Analyzer Microactuators Improved Light Armor Plating Hacking Suite System Shield Recalibrator Advanced Beam Cannon Advanced Beam Cannon Heavy Mace [Rating: 39] Favorites ----------- Power Light Ion Engine Engine Light Ion Engine Power Core Light Nuclear Core Propulsion Light Treads Treads Light Treads Leg Aluminum Leg Wheel Wheel Utility Signal Interpreter Device Shield Generator Storage Large Storage Unit Processor Signal Interpreter Hackware Hacking Suite Protection Hardened Medium Armor Plating Weapon EM Shotgun Energy Gun EM Shotgun Energy Cannon Advanced Beam Cannon Ballistic Gun Minigun Ballistic Cannon Improved Light Cannon Launcher Grenade Launcher Impact Weapon Hammer Slashing Weapon Katana Build | -11 -10 -10 -9 -8 -7 -7 ------- Run | Yrd Mat Min Mat Mat Fac DSF Slots Evolved 6 | . . . 2 2 2 . Power . | . . . . . . . Propulsion . | . . . . . . . Utility 5 | . . . 2 1 2 . Weapon 1 | . . . . 1 . . Parts Attached 81 | 6 10 6 24 27 2 6 Power 10 | 1 1 2 3 3 . . Engine 8 | 1 1 2 3 1 . . Core 2 | . . . . 2 . . Reactor . | . . . . . . . Propulsion 15 | 2 1 . 4 6 . 2 Treads 7 | 2 1 . 4 . . . Leg 1 | . . . . 1 . . Wheel 7 | . . . . 5 . 2 Hover . | . . . . . . . Flight . | . . . . . . . Utility 24 | 1 3 . 7 9 2 2 Device 6 | . . . 2 2 2 . Storage 3 | 1 1 . 1 . . . Processor 6 | . 2 . 1 2 . 1 Hackware 1 | . . . . 1 . . Protection 8 | . . . 3 4 . 1 Artifact . | . . . . . . . Weapon 32 | 2 5 4 10 9 . 2 Energy Gun 4 | . 3 1 . . . . Energy Cannon 5 | . . . 2 2 . 1 Ballistic Gun 11 | 2 1 1 3 4 . . Ballistic Cannon 3 | . . . 1 2 . . Launcher 3 | . 1 . 2 . . . Special Weapon . | . . . . . . . Impact Weapon 5 | . . 2 2 . . 1 Slashing Weapon 1 | . . . . 1 . . Piercing Weapon . | . . . . . . . Special Melee Weapon . | . . . . . . . Unidentified Prototypes . | . . . . . . . Parts Lost 28 | . . 2 4 7 . 15 Power 4 | . . 1 1 1 . 1 Propulsion 7 | . . . 1 3 . 3 Utility 8 | . . . 1 . . 7 Weapon 9 | . . 1 1 3 . 4 Highest Loss Streak 15 | . . 2 2 6 . 15 To Critical Strikes 1 | . . . 1 . . . Average Slot Usage (%) 97 | . 98 99 98 96 100 82 Engine 9 | . 13 13 10 1 . . Core 2 | . . . . 7 7 5 Treads 18 | . 28 28 21 3 . . Wheel 3 | . . . . 12 15 13 Device 9 | . . . 18 9 23 21 Storage 11 | . 14 14 11 9 7 7 Processor 11 | . 13 14 11 9 7 5 Hackware 2 | . . . . 8 7 1 Protection 3 | . . . 3 9 7 6 Energy Gun 6 | . 10 22 . . . . Energy Cannon 2 | . . . 4 5 . 1 Ballistic Gun 7 | . 9 2 3 12 15 9 Ballistic Cannon 2 | . . . 4 3 . . Launcher 2 | . 8 . 3 . . . Impact Weapon 2 | . . 2 6 . . 3 Naked Turns . | . . . . . . . Heaviest Build 47 | 11 21 21 38 47 44 47 Greatest Support 40 | 40 40 40 40 40 26 26 Greatest Overweight (x) 4 | . . . 1 3 1 4 Average Overweight (x) . | . . . . 1 1 1 Largest Inventory Capacity 15 | 8 10 10 15 15 15 15 Average Capacity 12 | 7 9 10 14 15 15 15 Most Carried 15 | 3 10 10 15 15 15 15 Average Carried 11 | 2 8 9 11 14 13 12 Final Capacity 15 | 8 10 10 15 15 15 15 Final Carried 15 | 3 10 9 15 14 15 9 Class Distribution -------------------- 70% | Mutant 17% | Scavenger-Mutant 11% | Tank Dominant Class ---------------- Mutant | -10/Materials Mutant | -10/Mines Mutant | -9/Materials Scavenger-Mutant | -8/Materials Scavenger-Mutant | -7/Factory Mutant | -7/DSF Resources | -11 -10 -10 -9 -8 -7 -7 ----------- Run | Yrd Mat Min Mat Mat Fac DSF Matter Collected 1766 | 220 90 276 516 653 . 11 Remotely . | . . . . . . . Salvage Created 2597 | 17 121 287 993 1075 . 104 Parts 178 | 3 20 14 59 76 . 6 Haulers Intercepted . | . . . . . . . Recyclers Shooed 1 | . . . 1 . . . Parts Field Recycled . | . . . . . . . Retrieved Matter . | . . . . . . . Parts Self-Destructed . | . . . . . . . Prevented . | . . . . . . . Kills | -11 -10 -10 -9 -8 -7 -7 ------- Run | Yrd Mat Min Mat Mat Fac DSF Combat Hostiles Destroyed 59 | . 7 7 27 16 . 2 Melee 4 | . . . 1 1 . 2 Guns 17 | . 1 6 3 7 . . Cannons 21 | . . . 13 8 . . AOE 14 | . 6 1 7 . . . Classes Destroyed 13 | 1 4 1 4 2 . 1 Worker 5 | . . . . 5 . . Builder 2 | . . . 1 1 . . Tunneler 3 | 1 . 1 . 1 . . Recycler 1 | . . . 1 . . . Operator 5 | . 1 . 2 2 . . Watcher 10 | . 2 . 3 5 . . Swarmer 8 | . 6 . 2 . . . Grunt 34 | . 1 6 18 9 . . Brawler 1 | . . . 1 . . . Duelist 2 | . . . . 2 . . Sentry 11 | . . . 6 5 . . Specialist 2 | . . . . . . 2 Assembled 1 | . . 1 . . . . Best Kill Streak 7 | 1 3 6 7 6 . 2 Combat Bots Only 5 | . 3 5 5 4 . 2 Max Kills in Single Turn 2 | 1 2 1 2 2 . 1 Gunslinging . | . . . . . . . Exploded 2 | . 2 1 2 . . . Melee 1 | . . . 1 1 . 1 Uniques/NPCs Destroyed . | . . . . . . . Combat | -11 -10 -10 -9 -8 -7 -7 -------- Run | Yrd Mat Min Mat Mat Fac DSF Hostile Shots Fired 349 | . 34 31 88 71 . 125 Missed 105 | . 9 8 33 11 . 44 Damage Taken 4249 | . 233 340 602 1132 46 1896 Core 1063 | . 37 62 130 132 23 679 Absorbed by Shields 175 | . . . 175 . . . Regen/Repaired (Parts) 212 | . . . 146 66 . . Core Remaining (%) 75 | 100 . 60 67 76 . . Volleys Fired 161 | 5 25 21 49 60 . 1 Largest 3 | 2 2 2 2 3 . 2 Hottest 146 | 40 90 90 107 146 . 50 Shots Fired 306 | 10 37 27 80 150 . 2 Gun 169 | 10 28 27 16 86 . 2 Cannon 118 | . . . 54 64 . . Launcher 19 | . 9 . 10 . . . Special . | . . . . . . . Kinetic 190 | 10 22 . 49 107 . 2 Thermal 57 | . . . 21 36 . . Explosive 19 | . 9 . 10 . . . Electromagnetic 40 | . 6 27 . 7 . . Robot Hit Streak 13 | 3 6 11 13 11 . 12 Robot Miss Streak 7 | 1 4 1 4 7 . 2 Penetration Max . | . . . . . . . Secondary Targets 2 | . . . . 2 . . Max Gunslinging Chain 1 | . . . . 1 . . Shots Hit Robots 227 | 7 21 24 60 97 . 18 Core Hits 120 | 3 14 18 43 40 . 2 Critical Kills 1 | . . . . . . 1 Critical Parts Destroyed 1 | . . . 1 . . . Critical Strikes 3 | . . . 1 1 . 1 Smash 2 | . . . 1 . . 1 Sever 1 | . . . . 1 . . Melee Attacks 64 | . . 8 20 15 . 21 Impact 46 | . . 8 20 . . 18 Slashing 18 | . . . . 15 . 3 Piercing . | . . . . . . . Sneak Attacks 7 | . . . 1 6 . . Combat Hostiles . | . . . . . . . Follow-up Attacks . | . . . . . . . Damage Inflicted 6061 | 70 662 589 1909 2336 . 495 Guns 1714 | 70 204 387 159 874 . 20 Cannons 1310 | . . . 534 776 . . Explosions 1425 | . 458 202 765 . . . Melee 1612 | . . . 451 686 . 475 Ramming . | . . . . . . . Kinetic 1789 | 70 152 . 470 1077 . 20 Thermal 834 | . . 202 223 409 . . Explosive 1223 | . 458 . 765 . . . Electromagnetic 603 | . 52 387 . 164 . . Impact 875 | . . . 451 . . 424 Slashing 737 | . . . . 686 . 51 Piercing . | . . . . . . . Highest Corruption 10 | . . . . 1 . 10 Average Corruption 1 | . . . . 1 . 7 Corruption Purged . | . . . . . . . Corruption Blocked . | . . . . . . . Effects 1 | . . . . 1 . . Alerts 1 | . . . . 1 . . Overload Shots . | . . . . . . . Overflow Damage 293 | . 6 . 76 211 . . Projectiles 11 | . . . . 11 . . Explosions 6 | . 6 . . . . . Melee 276 | . . . 76 200 . . Knockbacks 8 | . . . 4 2 . 2 Impact 4 | . . . 2 . . 2 Kinetic 4 | . . . 2 2 . . Secondary . | . . . . . . . Self-Inflicted Damage 128 | . . 86 42 . . . Shots 6 | . . 3 3 . . . Rammed . | . . . . . . . Targets Rammed . | . . . . . . . Kicked . | . . . . . . . Crushed . | . . . . . . . Highest Temperature 263 | . 66 117 53 263 . . Average Temperature 52 | . 29 59 13 72 . . Received Heat Transfer 882 | . 12 75 192 432 . 171 Siege Activations . | . . . . . . . Robots Corrupted . | . . . . . . . Combat Hostiles . | . . . . . . . Parts Fried 6 | . . . 4 2 . . Impact Corruptions 6 | . . . 6 . . . Robots Melted . | . . . . . . . Combat Hostiles . | . . . . . . . Parts Melted 1 | . . . . 1 . . Heat Transferred 1547 | . . 400 407 740 . . Parts Sabotaged . | . . . . . . . Parts Stolen . | . . . . . . . Parts Stripped . | . . . . . . . Power Chain Reactions 3 | . . 3 . . . . Alert | -11 -10 -10 -9 -8 -7 -7 ------- Run | Yrd Mat Min Mat Mat Fac DSF Peak Influence 378 | 5 201 75 378 316 92 89 Initial 159 | . 3 3 . 159 92 64 Average 113 | 1 70 21 145 193 92 59 Maximum Alert Level 1 | . 1 . 1 1 . . Low Security (%) 73 | 100 98 100 66 37 100 100 Level 1 26 | . 1 . 33 62 . . Level 2 . | . . . . . . . Level 3 . | . . . . . . . Level 4 . | . . . . . . . Level 5 . | . . . . . . . High Security . | . . . . . . . Max Security . | . . . . . . . Squads Dispatched 8 | . 1 . 3 2 . 2 Investigation 2 | . . . 1 1 . . Extermination . | . . . . . . . Reinforcement 6 | . 1 . 2 1 . 2 Assault . | . . . . . . . Garrison . | . . . . . . . Intercept . | . . . . . . . Searches Triggered . | . . . . . . . Construction Impeded . | . . . . . . . Haulers Reinforced . | . . . . . . . Active Scanning Responses . | . . . . . . . Cargo Convoy Interrupts . | . . . . . . . Stealth | -11 -10 -10 -9 -8 -7 -7 --------- Run | Yrd Mat Min Mat Mat Fac DSF Distress Signals 5 | . 1 1 1 2 . . Communications Jammed . | . . . . . . . Distress Signals . | . . . . . . . Times Spotted 93 | . 14 8 35 28 . 8 Peak Tracking Total 8 | . 4 4 8 5 . 5 Tactical Retreats 4 | . 1 1 . 1 . 1 Traps | -11 -10 -10 -9 -8 -7 -7 ------- Run | Yrd Mat Min Mat Mat Fac DSF Traps Triggered 6 | . 1 . 2 1 1 1 Indirectly . | . . . . . . . Trap Hack Attempts . | . . . . . . . Triggered . | . . . . . . . Disarmed . | . . . . . . . Reprogrammed . | . . . . . . . Reused . | . . . . . . . Traps Extracted . | . . . . . . . Installed . | . . . . . . . Triggered . | . . . . . . . Machines | -11 -10 -10 -9 -8 -7 -7 ---------- Run | Yrd Mat Min Mat Mat Fac DSF Machines Disabled 6 | . 3 . 2 1 . . Max in Single Turn 1 | . 1 . 1 1 . . Machines Repaired . | . . . . . . . Machines Dismantled . | . . . . . . . Machines Sabotaged . | . . . . . . . Overloaded Fab Kills . | . . . . . . . Hacking | -11 -10 -10 -9 -8 -7 -7 --------- Run | Yrd Mat Min Mat Mat Fac DSF Machines Accessed 27 | . 5 . 13 8 1 . Terminals 22 | . 5 . 10 6 1 . Fabricators . | . . . . . . . Repair Stations 2 | . . . 1 1 . . Recycling Units . | . . . . . . . Scanalyzers 3 | . . . 2 1 . . Garrison Access . | . . . . . . . Total Hacks 79 | . 11 . 47 20 1 . Successful 44 | . 5 . 25 13 1 . Failed 34 | . 6 . 22 6 . . Catastrophic 8 | . 2 . 5 1 . . Database Lockouts 1 | . . . . 1 . . Manual 41 | . 7 . 21 13 . . Terminals 58 | . 11 . 31 15 1 . Fabricators . | . . . . . . . Repair Stations 7 | . . . 5 2 . . Recycling Units . | . . . . . . . Scanalyzers 14 | . . . 11 3 . . Garrison Access . | . . . . . . . Terminal Hacks 26 | . 5 . 12 8 1 . Record 1 | . . . . 1 . . Robot Analysis 2 | . 1 . 1 . . . Prototype ID Bank 12 | . 3 . 6 3 . . Open DSF 1 | . . . . . 1 . Emergency Access Points 1 | . . . . 1 . . Terminal Index 3 | . 1 . 1 1 . . Unreport Threat 2 | . . . 1 1 . . Locate Traps 4 | . . . 3 1 . . Fabricator Hacks . | . . . . . . . Repair Station Hacks 6 | . . . 4 2 . . Scan Component 3 | . . . 2 1 . . Repair 3 | . . . 2 1 . . Recycling Unit Hacks . | . . . . . . . Scanalyzer 12 | . . . 9 3 . . Insert Component 4 | . . . 3 1 . . Analyze 8 | . . . 6 2 . . Garrison Access Hacks . | . . . . . . . Unauthorized Hacks . | . . . . . . . Terminals . | . . . . . . . Fabricators . | . . . . . . . Repair Stations . | . . . . . . . Recycling Units . | . . . . . . . Scanalyzers . | . . . . . . . Garrison Access . | . . . . . . . Data Cores Recovered 1 | . . . 1 . . . Used 1 | . . . 1 . . . Hacking Detections 25 | . 5 . 12 8 . . Full Trace Events 2 | . . . 1 1 . . Feedback Events 1 | . . . . 1 . . Corruption 1 | . . . . 1 . . Feedback Blocked . | . . . . . . . Robot Schematics Acquired . | . . . . . . . Robots Built . | . . . . . . . Authchips . | . . . . . . . Time . | . . . . . . . Total Robot Build Rating . | . . . . . . . Part Schematics Acquired 4 | . . . 3 1 . . Parts Built . | . . . . . . . Authchips . | . . . . . . . Time . | . . . . . . . Total Part Build Rating . | . . . . . . . Parts Repaired 3 | . . . 2 1 . . Time 103 | . . . 52 51 . . Parts Recycled . | . . . . . . . Recycled Matter . | . . . . . . . Retrieved Matter . | . . . . . . . Retrieved Components . | . . . . . . . Parts Scanalyzed 4 | . . . 3 1 . . Part Schematics Acquired 4 | . . . 3 1 . . Parts Damaged . | . . . . . . . Bothacking | -11 -10 -10 -9 -8 -7 -7 ------------ Run | Yrd Mat Min Mat Mat Fac DSF Used RIF Installer . | . . . . . . . Robots Hacked . | . . . . . . . Non-combat . | . . . . . . . Combat . | . . . . . . . Robot Hacks Applied . | . . . . . . . Relay Couplers Released . | . . . . . . . Fabnet Peak Effective % . | . . . . . . . Robots Rewired . | . . . . . . . Allies Hacked . | . . . . . . . Hacks Repelled . | . . . . . . . Allies | -11 -10 -10 -9 -8 -7 -7 -------- Run | Yrd Mat Min Mat Mat Fac DSF Total Allies . | . . . . . . . Largest Group . | . . . . . . . Highest-Rated Group . | . . . . . . . Highest-Rated Ally . | . . . . . . . Total Orders . | . . . . . . . Ally Attacks . | . . . . . . . Total Damage . | . . . . . . . Kills . | . . . . . . . Allies Corrupted . | . . . . . . . Allies Melted . | . . . . . . . Intel | -11 -10 -10 -9 -8 -7 -7 ------- Run | Yrd Mat Min Mat Mat Fac DSF Robot Analysis Total 2 | . 1 . 1 . . . Derelict Logs Recovered 2 | . . 2 . . . . Drone Launches . | . . . . . . . Drone Recoveries . | . . . . . . . Exploration | -11 -10 -10 -9 -8 -7 -7 ------------- Run | Yrd Mat Min Mat Mat Fac DSF Turns Passed 5091 | 113 994 942 1541 1277 77 147 Spaces Moved 2729 | 50 563 511 730 754 69 52 Core 2 | 2 . . . . . . Treads 1955 | 48 563 511 730 103 . . Legs . | . . . . . . . Wheels 772 | . . . . 651 69 52 Hover . | . . . . . . . Flight . | . . . . . . . Fastest Speed 50 | 50 160 160 160 95 105 95 Average Speed 146 | 155 160 160 161 119 105 104 Slowest Speed 240 | 160 160 160 240 160 105 140 Overloaded Moves . | . . . . . . . Propulsion Burnouts . | . . . . . . . Robots Hopped . | . . . . . . . Cave-ins Triggered . | . . . . . . . Exploration Rate (%) 48 | 5 83 81 70 57 1 40 Regions Visited 6 Branch Regions 1 Pre-discovered Areas 1 | . . 1 . . . . Known Exits Taken 5 | . 1 1 1 1 1 . Unknown Exits Taken 1 | 1 . . . . . . Scrap Searched 2 | . . 2 . . . . Spaces Dug 1 | . . . 1 . . . Terrain Destroyed 131 | . 26 19 86 . . . Melee 1 | . . . 1 . . . Projectile 2 | . . . 2 . . . AOE 128 | . 26 19 83 . . . Terrain Rammed . | . . . . . . . Walls Destroyed . | . . . . . . . Machines Disabled . | . . . . . . . Actions | -11 -10 -10 -9 -8 -7 -7 --------- Run | Yrd Mat Min Mat Mat Fac DSF Total 3494 | 73 622 597 984 1009 73 136 Wait 330 | 10 5 42 117 101 . 55 Move 2723 | 49 562 510 729 753 68 52 Hop . | . . . . . . . Pick Up 58 | 3 8 3 22 19 3 . Fast Attach 46 | 6 7 2 13 18 . . Attach 35 | . 3 4 11 9 2 6 Detach 29 | . 8 3 9 8 . 1 Swap . | . . . . . . . Drop 48 | . 4 4 14 26 . . Fire 161 | 5 25 21 49 60 . 1 Melee 64 | . . 8 20 15 . 21 Ram . | . . . . . . . Kick . | . . . . . . . Crush . | . . . . . . . Escape Stasis . | . . . . . . . Rewire . | . . . . . . . Trap . | . . . . . . . Miscellaneous . | . . . . . . . Route ------- -11/Scrapyard -10/Materials (discovered 4 exits: *Mat x3 / *Min) -10/Mines -9/Materials (discovered 3 exits: *Mat x3) -8/Materials -7/Factory -7/DSF History --------- Turn | Location | Event 2 | -11/Scrapyard | Met Revision 17 24 | -11/Scrapyard | Discovered new exit (range 15) 114 | -11/Scrapyard | Entered Materials 246 | -10/Materials | Discovered new exit (range 13) 278 | -10/Materials | Identified exit to Mines 304 | -10/Materials | Build established: Mutant 583 | -10/Materials | Discovered new exit (range 14) 618 | -10/Materials | Identified exit to Materials 755 | -10/Materials | Discovered exit to Materials (range 9) 1038 | -10/Materials | Discovered exit to Materials (range 11) 1108 | -10/Materials | Entered Mines 1225 | -10/Mines | Learned 4 Materials zone layouts 1446 | -10/Mines | Discovered exit to Materials (range 13) 1791 | -10/Mines | Excavation squad dispatched 1791 | -10/Mines | A large section of the Mines collapsed 2050 | -10/Mines | Entered Materials 2050 | -9/Materials | Evolved 2 slots: Utility x2 2739 | -9/Materials | Repaired Lgt. Treads 2767 | -9/Materials | Repaired Hammer 3057 | -9/Materials | Discovered new exit (range 9) 3074 | -9/Materials | Identified exit to Materials 3397 | -9/Materials | Discovered exit to Materials (range 11) 3567 | -9/Materials | Discovered exit to Materials (range 16) 3591 | -9/Materials | Entered another Materials area 3591 | -8/Materials | Evolved 2 slots: Utility x1, Weapon x1 3743 | -8/Materials | Build established: Scavenger-Mutant 3993 | -8/Materials | Central database locked down 4065 | -8/Materials | Repaired Adv. Beam Cannon 4259 | -8/Materials | Discovered new exit (range 5) 4285 | -8/Materials | Identified exit to Factory 4356 | -8/Materials | Build established: Tank 4459 | -8/Materials | Lost 6 parts (1p2n3w) 4724 | -8/Materials | Build established: Scavenger-Mutant 4868 | -8/Materials | Entered Factory 4868 | -7/Factory | Evolved 2 slots: Utility x2 4929 | -7/Factory | Identified exit to DSF 4945 | -7/Factory | Entered DSF 4962 | -7/DSF | Additional patrols routed to DSF 5065 | -7/DSF | Core integrity fell below 50% 5081 | -7/DSF | Core integrity fell below 20% 5087 | -7/DSF | System corruption reached 10% 5092 | -7/DSF | Destroyed by G-47 Trooper with Particle Gun Last Messages --------------- 05067_ Penetrated by Slug. 05070_ Slug penetrates Wall. 05073_ Wheel destroyed. 05073_ Knocked back. 05073_ Penetrated by Slug. 05076_ Target Analyzer destroyed. 05076_ System corrupted by crushing effect (+4). 05076_ Knocked back. 05080_ Slug penetrates Wall. 05081_ Hvy. Mace destroyed. 05081_ System corrupted by crushing effect (+2). 05084_ Microactuators destroyed. 05084_ System corrupted by crushing effect (+2). 05086_ Slug penetrates Wall. 05086_ Microactuators destroyed. 05086_ System corrupted by crushing effect (+2). 05088_ Adv. Beam Cannon destroyed. 05092_ Microactuators destroyed. 05092_ System corrupted by crushing effect (+5). 05092_ Knocked back. Map ----- +----------------------------------------------------+ | ??????????????????????? !??????????????????????? | | ??????????????????????? !??????????????????????? | | ??????????????????????? !??????????????????????? | | ??????????????????????# #???###????????????????? | | ?????????????????????## ##?]]]#????????????????? | | ?????????????????????# " ##]]]?????????????????? | | ????????! ?????????? "%" ??????????????????? | | ????????! ??????????? " ???????????????????? | | ????????! ??????????? ????????????????????? | | ???????? ??????????? #?????????????????????? | | ???????? #??????????# #??????????????????????? | | ???????## #????????### ###????????????????????? | | ???????# [????????#!! ]]#????????????????????? | | ???????? [???????##!! ]]#????????????????????? | | ???????? [???????#"!! % ]]#????????????????????? | | ???????## ##??????###; ###????????????????????? | | ???????#[ ]????????#[[*% #????????????????????? | | ???????#[ ]????????#[[% #????????????????????? | | ????????# #?########[[!= #????????????????????? | | ??????### ### #]]]%##hg ###????????????????????? | | ????###"" ## #]]]### [%;##????????????????????? | | ????""""" #????????????????????? | | ?????##"" % [% #????????????????????? | | ??????#"""""##[[" # !gbH*#????????????????????? | | ??????#"""""#########% !!!**#????????????????????? | | ??????####"##???????##"##@###????????????????????? | | ?????????#"#?????????##?###??????????????????????? | | ?????????""#?????????????????????????????????????? | | ?????????????????????????????????????????????????? | | ?????????????????????????????????????????????????? | | ?????????????????????????????????????????????????? | | ?????????????????????????????????????????????????? | | ?????????????????????????????????????????????????? | | | | | | | | | | | | | | | | | | | | | | | | | | | | | | | | | | | +----------------------------------------------------+ Best States ------------- Heat Dissipation 55 Energy Generation 14 Energy Capacity 265 Matter Stores 300 Matter Capacity 300 Sight Range 16 Terrain Scan Density 10 Armor Coverage 300 Melee Speed Boost 50 Evasion (%) 41 Targeting Accuracy 6 Melee Accuracy 5 Target Analysis 5 Recoil Reduction 2 Offensive Hacking 10 Item Schematics ----------------- Hacking Suite | -9/Materials | Scanalyzed Adv. Beam Cannon | -9/Materials | Scanalyzed Imp. Light Cannon | -9/Materials | Scanalyzed Microactuators | -8/Materials | Scanalyzed Robot Schematics ------------------ None Fabricated ------------ Nothing Alien Tech Used ----------------- None Achievements -------------- None Challenges ------------ None Game ------ Seed CloakAbsorptionNeutralizer Manual? 0 Play Time 01:14:03 Cumulative 27.4 hours Start 2024.06.08 @ 12:58:03 End 2024.06.08 @ 16:43:51 Sessions 7 Manual Loads 0 Difficulty Rogue Special Mode None Game No. 18 Rogue 17 Adventurer 0 Explorer 1 Win Type - Total 2 Types 2/0/0/0/0/0/0/0/0 Lore% 22 Gallery% 26 Achievement% 28 Wizard Run 0 Options --------- Layout 0 ASCII 0 Keyboard 0 Movement Mouse Keybinds 0 Fullscreen 2 Font 18/SmallcapsGlow Map View 76x50 Zoom Use 0% Tactical HUD 1 Map Filters NONE Filters NONE Steam 1 RUN: 6f14116c-9349-4df4-81a4-d8370273dd6d